bitfinex-derivatives/quotes_SOLF0:USTF0_20251201
["timestamp","ask_amount","ask_price","bid_price","bid_amount"]
[1764597509365,1.27,126.56,126.53,3.41818166]
[1764597509565,1.27,126.57,126.53,3.41818166]
[1764597510168,1.27,126.59,126.55,3.36]
[1764597510372,1.27,126.59,126.57,3.36]
[1764597510766,1.27,126.6,126.57,3.36]
[1764597511670,1.27,126.6,126.56,3.41909315]
[1764597511976,1.27,126.59,126.56,3.41909315]
[1764597513175,8.3809,126.6,126.56,3.41909315]
[1764597513366,1.27,126.6,126.56,3.41909315]
[1764597513779,1.27,126.59,126.56,0.05909315]
[1764597513976,1.27,126.59,126.56,3.15909315]
[1764597514865,1.27,126.58,126.56,0.05909315]
[1764597516379,8.382,126.58,126.56,0.05909315]
[1764597516777,1.27,126.57,126.56,0.05909315]
[1764597518681,8.3826,126.57,126.56,0.05909315]
[1764597519986,8.3244,126.54,126.5,3.1]
[1764597521182,0.05012467,126.53,126.51,3.1579726]
[1764597528492,1.26012467,126.53,126.51,3.1579726]
[1764597528896,8.37522467,126.53,126.51,0.0579726]
[1764597529398,8.3254,126.52,126.51,0.0579726]
[1764597529984,0.05012467,126.53,126.51,3.3979726]
[1764597532989,1.27012467,126.53,126.51,3.3979726]
[1764597533198,0.05012467,126.53,126.51,3.3979726]
[1764597534601,1.27012467,126.53,126.51,3.3979726]
[1764597534997,8.38492467,126.53,126.51,3.3979726]
[1764597535799,8.38492467,126.53,126.51,0.0579726]
[1764597536000,8.3354,126.52,126.51,0.0579726]
[1764597536398,1.27012467,126.53,126.51,3.3979726]
[1764597536602,1.22,126.52,126.51,0.0579726]
[1764597537608,8.3354,126.52,126.51,0.0579726]
[1764597538505,8.3369,126.5,126.47,3.34]
[1764597539500,8.39586409,126.5,126.47,3.39181764]
[1764597539700,0.05896409,126.5,126.47,3.39181764]
[1764597542314,0.05896409,126.5,126.48,3.34]
[1764597542613,0.05896409,126.5,126.48,10.71094663]
[1764597542913,7.1146,126.54,126.49,3.34]
[1764597543110,8.3346,126.54,126.5,3.34]
[1764597543504,1.22,126.52,126.48,10.71094663]
[1764597543709,1.22,126.52,126.49,3.34]
[1764597543909,1.22,126.52,126.49,0.0591623]
[1764597544111,1.27228399,126.52,126.49,0.0591623]
[1764597544916,1.22,126.5,126.49,0.0591623]
[1764597557822,8.3365,126.5,126.49,0.0591623]
[1764597558028,1.22,126.49,126.43,14.83305198]
[1764597558225,1.22,126.49,126.44,3.34]
[1764597558526,1.22,126.46,126.44,3.34]
[1764597558918,1.2726808,126.46,126.44,0.05356691]
[1764597559114,0.0526808,126.46,126.44,3.39356691]
[1764597559317,0.0526808,126.46,126.45,7.46210535]
[1764597559726,0.0526808,126.46,126.45,3.34]
[1764597562922,0.0526808,126.46,126.44,0.05356691]
[1764597562923,1.2726808,126.46,126.44,0.05356691]
[1764597563629,1.22,126.45,126.44,0.05356691]
[1764597565334,8.3919808,126.46,126.44,0.05356691]
[1764597567230,1.22,126.45,126.44,0.05356691]
[1764597567426,8.3393,126.45,126.44,0.05356691]
[1764597577433,1.2726808,126.46,126.44,3.24356691]
[1764597577633,1.2726808,126.46,126.44,0.05356691]
[1764597578333,8.3914808,126.46,126.44,0.05356691]
[1764597579344,1.22,126.45,126.44,0.05356691]
[1764597584146,8.3393,126.45,126.44,0.05356691]
[1764597585050,0.0526808,126.46,126.44,3.24356691]
[1764597587742,1.2726808,126.46,126.44,3.24356691]
[1764597590639,0.0526808,126.46,126.44,3.24356691]
[1764597597443,1.2726808,126.46,126.44,0.05356691]
[1764597598055,8.3914808,126.46,126.44,3.15356691]
[1764597598750,1.2726808,126.46,126.44,3.15356691]
[1764597598940,0.0526808,126.46,126.44,3.15356691]
[1764597599751,1.2726808,126.46,126.44,3.15356691]
[1764597600157,0.0526808,126.46,126.44,5.79474658]
[1764597600355,0.0526808,126.46,126.45,3.1]
[1764597600953,1.2726808,126.46,126.44,3.15356691]
[1764597601253,1.2726808,126.46,126.44,0.05356691]
[1764597601452,1.2726808,126.46,126.44,3.15356691]
[1764597601654,0.0526808,126.46,126.44,3.15356691]
[1764597603349,0.0526808,126.46,126.45,5.74117967]
[1764597604644,0.0526808,126.46,126.45,3.1]
[1764597604857,1.2726808,126.46,126.44,3.15356691]
[1764597605654,0.0526808,126.46,126.44,3.15356691]
[1764597606559,1.2726808,126.46,126.44,3.15356691]
[1764597606865,0.0526808,126.46,126.44,3.15356691]
[1764597607852,1.22,126.45,126.44,0.05356691]
[1764597608046,3.98692419,126.45,126.44,0.00356691]
[1764597609161,8.3393,126.45,126.44,0.00356691]
[1764597609362,0.0526808,126.46,126.44,3.10356691]
[1764597609556,1.2226808,126.46,126.44,3.10356691]
[1764597610260,1.2226808,126.46,126.44,0.00356691]
[1764597611452,8.3414808,126.46,126.44,0.00356691]
[1764597613364,0.0526808,126.46,126.45,3.1]
[1764597619863,2.69300982,126.5,126.45,3.1]
[1764597620070,1.22,126.51,126.47,3.27]
[1764597620570,1.22,126.51,126.47,10.66059938]
[1764597621068,1.27205176,126.5,126.48,0.0577693]
[1764597623971,1.27205176,126.5,126.48,3.3277693]
[1764597624169,0.05205176,126.5,126.49,3.27]
[1764597624470,1.22,126.56,126.49,3.27]
[1764597624771,1.22,126.55,126.52,3.27]
[1764597625363,1.27710916,126.55,126.52,3.32578051]
[1764597625760,0.05710916,126.55,126.52,3.32578051]
[1764597627068,1.22,126.54,126.52,0.05578051]
[1764597627469,1.22,126.53,126.52,0.05578051]
[1764597628374,8.3348,126.53,126.52,0.05578051]
[1764597628575,1.22,126.52,126.49,3.27]
[1764597629566,1.22,126.52,126.49,3.32310252]
[1764597629772,1.27235515,126.52,126.49,3.32310252]
[1764597630172,0.05235515,126.52,126.49,5.96428219]
[1764597630374,1.27,126.56,126.52,3.27]
[1764597631378,0.05575955,126.55,126.53,0.05029189]
[1764597631578,0.05575955,126.55,126.53,3.32029189]
[1764597637788,1.27,126.54,126.53,0.05029189]
[1764597639383,8.3842,126.54,126.53,0.05029189]
[1764597642286,8.3842,126.54,126.53,0.00029189]
[1764597645291,11.02537967,126.54,126.53,0.00029189]
[1764597650396,38.18537967,126.54,126.53,0.00029189]
[1764597654502,35.5442,126.54,126.53,0.00029189]
[1764597658700,59.2842,126.54,126.53,0.00029189]
[1764597658900,1.22,126.49,126.47,3.13]
[1764597659899,0.05850824,126.49,126.47,3.18137874]
[1764597660601,110.6769,126.53,126.47,3.18137874]
[1764597660602,1.28,126.56,126.48,3.13]
[1764597660799,1.28,126.55,126.49,3.13]
[1764597660999,5.40431862,126.55,126.49,3.13]
[1764597661600,0.05820309,126.53,126.51,3.19012339]
[1764597665801,0.05820309,126.53,126.51,10.5744681]
[1764597666111,0.05820309,126.53,126.52,3.13]
[1764597666308,7.1132,126.56,126.52,3.13]
[1764597666513,3.91416345,126.58,126.52,3.13]
[1764597666514,9.74636345,126.58,126.52,3.13]
[1764597666712,7.1122,126.58,126.52,3.13]
[1764597666912,9.74636345,126.58,126.52,10.2448]
[1764597667112,9.74636345,126.58,126.53,3.13]
[1764597667113,7.1122,126.58,126.53,3.13]
[1764597667308,7.1122,126.58,126.55,3.13]
[1764597667505,2.63416345,126.59,126.54,0.05000963]
[1764597667506,1.28,126.56,126.54,0.05000963]
[1764597669123,1.28,126.55,126.49,10.51434471]
[1764597669410,1.28,126.55,126.49,3.13]
[1764597669605,1.28,126.53,126.49,3.13]
[1764597670208,0.05928113,126.52,126.5,3.18630707]
[1764597672012,0.05928113,126.52,126.5,10.57065178]
[1764597672211,0.05928113,126.52,126.51,3.13]
[1764597672412,8.3932,126.56,126.52,3.13]
[1764597673615,8.3932,126.56,126.53,0.05434339]
[1764597673818,1.28,126.54,126.53,0.05434339]
[1764597674025,7.1137,126.55,126.53,3.18434339]
[1764597674512,1.28,126.56,126.53,3.18434339]
[1764597676221,110.6175,126.6,126.53,3.18434339]
[1764597676222,1.28,126.6,126.54,3.13]
[1764597676415,3.8683582,126.62,126.56,3.1865742]
[1764597676615,1.28,126.62,126.56,3.1865742]
[1764597677616,1.28,126.62,126.57,3.13]
[1764597680027,3.86861063,126.65,126.58,3.2]
[1764597680228,1.28,126.65,126.61,3.2]
[1764597680725,1.28,126.65,126.6,3.25873153]
[1764597681124,8.3887,126.64,126.6,3.25873153]
[1764597681426,1.28,126.63,126.6,3.25873153]
[1764597683229,8.3887,126.64,126.6,3.25873153]
[1764597684328,7.1087,126.64,126.6,3.25873153]
[1764597684924,7.1082,126.65,126.6,3.25873153]
[1764597692729,1.28,126.7,126.62,3.3]
[1764597692934,1.28,126.7,126.65,3.36086616]
[1764597693325,1.28,126.68,126.65,3.36086616]
[1764597693618,1.28,126.7,126.65,3.36086616]
[1764597694131,1.28,126.69,126.65,3.36086616]
[1764597694926,1.28,126.68,126.65,0.06086616]
[1764597695428,8.387,126.67,126.65,0.06086616]
[1764597695932,8.387,126.67,126.65,3.36086616]
[1764597696927,1.28,126.67,126.65,3.36086616]
[1764597697532,1.28,126.66,126.65,0.06086616]
[1764597699528,1.28,126.65,126.58,3.3]
[1764597700334,7.1087,126.64,126.59,3.3]
[1764597700634,0.05320625,126.63,126.61,3.3]
[1764597703533,0.05320625,126.63,126.61,10.4098]
[1764597703737,0.05320625,126.63,126.62,3.3]
[1764597704339,0.05320625,126.63,126.61,3.3]
[1764597705930,1.33320625,126.63,126.6,0.05573281]
[1764597706842,8.44270625,126.63,126.6,0.05573281]
[1764597707137,8.44270625,126.63,126.6,3.35573281]
[1764597707339,0.05320625,126.63,126.6,3.35573281]
[1764597710444,0.05320625,126.63,126.6,10.46633281]
[1764597710646,0.05320625,126.63,126.61,3.19]
[1764597715046,1.26,126.69,126.62,3.19]
[1764597715244,8.366,126.69,126.64,3.19]
[1764597715439,4.68229145,126.71,126.64,3.19]
[1764597715440,1.31,126.68,126.64,3.19]
[1764597715943,1.31,126.68,126.65,0.05157958]
[1764597716146,1.31,126.68,126.65,3.24157958]
[1764597716354,8.4166,126.68,126.65,3.24157958]
[1764597717754,1.31,126.69,126.65,3.24157958]
[1764597718457,8.4151,126.71,126.66,3.19]
[1764597719446,1.31,126.72,126.68,3.19]
[1764597719647,1.31,126.72,126.69,0.05992184]
[1764597720357,8.4142,126.72,126.69,3.24992184]
[1764597720950,1.31,126.71,126.69,0.05992184]
[1764597721253,4.30195653,126.7,126.69,0.05992184]
[1764597721857,1.25,126.67,126.62,3.19]
[1764597722062,1.25,126.66,126.62,3.19]
[1764597722758,1.25,126.66,126.63,3.19]
[1764597722960,1.30472937,126.66,126.63,3.24495567]
[1764597723160,1.25,126.65,126.63,0.05495567]
[1764597723765,1.2,126.63,126.59,7.38434471]
[1764597723963,1.2,126.63,126.57,9.65902981]
[1764597723964,1.2,126.63,126.57,10.57434471]
[1764597724353,1.2,126.61,126.57,7.38434471]
[1764597724664,1.2,126.61,126.56,7.38434471]
[1764597724867,1.25251155,126.6,126.58,0.06054085]
[1764597729165,1.2,126.59,126.58,0.06054085]
[1764597732570,1.13,126.57,126.52,7.38434471]
[1764597732758,1.13,126.56,126.5,7.38434471]
[1764597733266,8.2443,126.54,126.5,3.19]
[1764597733665,0.05334292,126.53,126.51,0.05903692]
[1764597735072,0.00334292,126.53,126.51,3.24903692]
[1764597735270,1.13,126.59,126.52,3.19]
[1764597736271,0.05843654,126.57,126.54,3.25018829]
[1764597738374,1.23843654,126.57,126.54,0.06018829]
[1764597738972,1.18,126.56,126.54,0.06018829]
[1764597740473,8.2932,126.56,126.54,0.06018829]
[1764597740661,1.2,126.55,126.54,0.06018829]
[1764597741876,1.2,126.55,126.49,3.38]
[1764597741877,1.14,126.53,126.49,3.38]
[1764597742377,1.14,126.56,126.49,3.38]
[1764597742977,1.2009337,126.54,126.51,3.43251694]
[1764597743175,0.0609337,126.54,126.51,3.43251694]
[1764597745774,7.1125,126.58,126.51,3.43251694]
[1764597745974,7.1125,126.58,126.51,3.38]
[1764597746973,0.05269071,126.56,126.54,3.38]
[1764597747571,0.05269071,126.56,126.55,3.38]
[1764597747765,7.1111,126.6,126.55,3.38]
[1764597747973,110.5875,126.64,126.57,3.38]
[1764597748171,1.25,126.65,126.58,3.38]
[1764597748467,111.8088,126.67,126.58,3.38]
[1764597748873,0.05910536,126.64,126.62,3.38]
[1764597750672,1.30910536,126.64,126.61,0.05935922]
[1764597750874,1.30910536,126.64,126.61,3.43935922]
[1764597751081,8.41790536,126.64,126.61,3.43935922]
[1764597751376,1.30910536,126.64,126.61,0.05935922]
[1764597753678,1.25,126.63,126.61,0.05935922]
[1764597755484,8.3594,126.63,126.61,0.05935922]
[1764597755677,7.1094,126.63,126.61,0.05935922]
[1764597755983,0.05910536,126.64,126.61,3.26935922]
[1764597756480,8.3559,126.69,126.61,3.26935922]
[1764597756686,1.25,126.69,126.62,3.21]
[1764597757185,8.356,126.69,126.63,3.21]
[1764597757596,0.0227453,126.67,126.65,3.2660729]
[1764597757978,1.3327453,126.67,126.65,0.0560729]
[1764597759580,8.4398453,126.67,126.65,0.0560729]
[1764597762191,0.0027453,126.67,126.65,3.2660729]
[1764597762485,1.31,126.73,126.65,3.2660729]
[1764597762788,1.31,126.73,126.65,3.21]
[1764597763286,8.4136,126.73,126.68,3.21]
[1764597763482,1.33,126.72,126.68,3.26265393]
[1764597763684,1.33,126.72,126.69,0.05278658]
[1764597764084,1.33,126.7,126.69,0.05278658]
[1764597765383,2.91,126.7,126.69,0.05278658]
[1764597765579,1.28,126.67,126.63,3.21]
[1764597765782,110.5298,126.7,126.63,3.21]
[1764597765982,1.28,126.7,126.63,3.21]
[1764597766484,0.05278658,126.68,126.65,0.05887693]
[1764597766689,8.43938658,126.68,126.65,0.05887693]
[1764597766889,1.28,126.67,126.65,0.05887693]
[1764597767386,1.28,126.66,126.65,0.05887693]
[1764597767791,8.3872,126.67,126.65,0.05887693]
[1764597768486,1.28,126.66,126.65,0.05887693]
[1764597768786,7.1072,126.67,126.65,0.05887693]
[1764597768986,8.3872,126.67,126.65,0.05887693]
[1764597770590,7.1072,126.67,126.65,3.22887693]
[1764597770782,0.05278658,126.68,126.65,3.22887693]
[1764597771692,7.15918658,126.68,126.65,3.22887693]
[1764597771889,1.28,126.67,126.65,0.05887693]
[1764597772095,8.43918658,126.68,126.65,3.22887693]
[1764597772290,0.05278658,126.68,126.65,3.22887693]
[1764597773689,0.05278658,126.68,126.65,10.33687693]
[1764597773998,0.05278658,126.68,126.66,3.17]
[1764597774895,0.05278658,126.68,126.65,3.22887693]
[1764597774896,1.33278658,126.68,126.65,3.22887693]
[1764597775196,0.05278658,126.68,126.65,3.22887693]
[1764597778599,7.1047,126.72,126.66,3.17]
[1764597778985,1.28,126.74,126.67,3.17]
[1764597779191,8.3838,126.73,126.67,3.17]
[1764597779397,1.28,126.73,126.67,3.17]
[1764597779595,1.28,126.73,126.69,0.05381691]
[1764597779892,1.28,126.73,126.69,3.22381691]
[1764597780499,161.2894,126.76,126.69,3.22381691]
[1764597780693,1.28,126.75,126.69,3.22381691]
[1764597781399,8.3829,126.75,126.69,3.22381691]
[1764597781793,8.3834,126.74,126.69,3.22381691]
[1764597782099,1.28,126.73,126.69,3.22381691]
[1764597782795,8.3834,126.74,126.69,3.22381691]
[1764597783296,8.3828,126.75,126.7,3.17]
[1764597783500,8.3828,126.75,126.72,3.17]
[1764597783698,27.12,126.76,126.72,3.17]
[1764597783895,1.28,126.76,126.72,3.17]
[1764597785401,7.1005,126.79,126.72,3.17]
[1764597785611,1.28,126.8,126.69,110.5299]
[1764597785612,1.28,126.8,126.75,3.17]
[1764597786293,8.3798,126.8,126.75,3.17]
[1764597786489,1.28,126.8,126.75,3.17]
[1764597790399,1.28,126.79,126.75,3.17]
[1764597791506,1.28,126.78,126.75,3.17]
[1764597791704,1.28,126.78,126.74,0.05734703]
[1764597792006,1.28,126.77,126.74,0.05734703]
[1764597792507,1.28,126.79,126.74,3.22734703]
[1764597792901,8.3806,126.79,126.74,3.22734703]
[1764597793106,1.28,126.78,126.74,3.22734703]
[1764597793306,137.5365,126.81,126.74,3.22734703]
[1764597793307,1.28,126.81,126.74,3.22734703]
[1764597793708,7.0998,126.8,126.74,3.22734703]
[1764597793900,1.28,126.81,126.74,3.22734703]
[1764597794208,8.3794,126.81,126.74,10.33034703]
[1764597794505,8.3794,126.81,126.75,3.17]
[1764597794708,1.28,126.8,126.77,3.22997045]
[1764597795508,137.5324,126.84,126.77,3.22997045]
[1764597795509,8.3781,126.83,126.77,3.22997045]
[1764597795710,1.28,126.82,126.77,3.22997045]
[1764597796012,8.3792,126.81,126.77,3.22997045]
[1764597797207,8.3799,126.8,126.77,3.22997045]
[1764597797413,1.28,126.8,126.77,0.05997045]
[1764597797919,110.4177,126.83,126.77,0.05997045]
[1764597797920,1.28,126.85,126.78,3.17]
[1764597798105,1.28,126.88,126.81,3.17]
[1764597798415,1.28,126.86,126.83,0.06014546]
[1764597798613,1.28,126.86,126.83,0.05596742]
[1764597799210,1.28,126.84,126.83,0.05596742]
[1764597799913,1.28,126.82,126.78,3.17]
[1764597800513,7.0983,126.83,126.78,3.17]
[1764597801014,0.05387762,126.82,126.8,3.13]
[1764597801210,1.32387762,126.82,126.79,3.18310137]
[1764597801406,8.42267762,126.82,126.79,3.18310137]
[1764597801616,1.27,126.81,126.79,0.05310137]
[1764597803306,8.3693,126.81,126.79,0.05310137]
[1764597804514,1.27,126.8,126.79,0.05310137]
[1764597805512,0.05387762,126.82,126.79,3.18310137]
[1764597808218,0.05387762,126.82,126.79,10.28330137]
[1764597808423,0.05387762,126.82,126.8,3.32]
[1764597811722,8.3658,126.87,126.8,3.32]
[1764597812422,7.0963,126.86,126.8,3.32]
[1764597812622,7.0963,126.86,126.82,0.05608338]
[1764597812925,8.4163,126.86,126.82,3.37608338]
[1764597814222,1.32,126.86,126.82,3.37608338]
[1764597814618,1.32,126.88,126.82,3.37608338]
[1764597814821,1.32,126.87,126.84,0.05169637]
[1764597815023,1.32,126.85,126.84,0.05795215]
[1764597815224,113.2986,126.85,126.79,3.32]
[1764597815424,113.2986,126.85,126.73,220.9995]
[1764597815425,1.26,126.78,126.73,3.32]
[1764597815719,110.4275,126.82,126.73,3.32]
[1764597815720,1.26,126.81,126.73,3.32]
[1764597816219,7.1002,126.79,126.76,0.0539116]
[1764597816425,0.05357359,126.78,126.76,3.3739116]
[1764597818826,1.26,126.84,126.76,3.3739116]
[1764597819019,1.26,126.84,126.76,3.32]
[1764597819219,7.098,126.83,126.76,3.32]
[1764597819826,8.408,126.83,126.79,3.32]
[1764597820027,7.0986,126.82,126.79,3.32]
[1764597820921,7.0986,126.82,126.78,3.37526328]
[1764597821118,8.4086,126.82,126.78,3.37526328]
[1764597821925,8.4092,126.81,126.78,3.37526328]
[1764597822321,7.0992,126.81,126.78,3.37526328]
[1764597824927,1.31,126.82,126.78,3.37526328]
[1764597826028,7.0974,126.84,126.78,3.37526328]
[1764597827328,8.4074,126.84,126.78,3.37526328]
[1764597827822,1.31,126.89,126.8,10.63164024]
[1764597828028,1.31,126.89,126.83,0.05084133]
[1764597829321,8.4061,126.87,126.83,3.37084133]
[1764597830728,8.4165,126.86,126.83,3.37084133]
[1764597831725,1.32,126.85,126.83,0.05084133]
[1764597832620,8.4174,126.84,126.83,0.05084133]
[1764597833635,9.9974,126.84,126.83,0.05084133]
[1764597834430,1.27,126.8,126.77,3.14]
[1764597834834,1.27,126.83,126.77,3.14]
[1764597835028,1.27,126.81,126.77,3.14]
[1764597835427,0.05045452,126.8,126.78,0.0579966]
[1764597835622,0.05045452,126.8,126.78,3.1979966]
[1764597836026,1.32045452,126.8,126.78,0.0579966]
[1764597836824,8.3702,126.79,126.78,0.0579966]
[1764597838132,8.3702,126.79,126.72,7.31164024]
[1764597838133,1.21,126.75,126.72,7.31164024]
[1764597838332,1.21,126.75,126.72,3.14]
[1764597839132,1.26093068,126.75,126.72,3.19532966]
[1764597839333,0.05093068,126.75,126.72,3.19532966]
[1764597839735,0.05093068,126.75,126.73,3.14]
[1764597840432,0.05093068,126.75,126.73,10.45164024]
[1764597840630,0.05093068,126.75,126.74,3.14]
[1764597841226,7.1009,126.78,126.75,3.14]
[1764597841431,8.3602,126.8,126.75,3.14]
[1764597841627,7.1002,126.8,126.75,3.14]
[1764597841828,7.1002,126.8,126.76,3.14]
[1764597842026,7.1002,126.8,126.77,3.14]
[1764597842231,7.16071521,126.8,126.77,3.19040327]
[1764597843637,0.06051521,126.8,126.77,10.50204351]
[1764597843843,1.32,126.87,126.8,3.14]
[1764597844033,7.0965,126.86,126.8,3.14]
[1764597844236,1.32,126.89,126.82,3.14]
[1764597844444,1.32,126.87,126.81,7.31164024]
[1764597844642,1.32,126.87,126.79,10.45164024]
[1764597844938,8.4159,126.87,126.83,0.05403633]
[1764597845138,8.4159,126.87,126.83,3.19403633]
[1764597845139,1.32,126.86,126.83,3.19403633]
[1764597845527,1.32,126.86,126.83,0.05403633]
[1764597846329,8.4159,126.87,126.83,3.19403633]
[1764597847041,7.0948,126.89,126.83,3.19403633]
[1764597847932,7.0938,126.91,126.85,3.14]
[1764597848136,1.32,126.94,126.88,3.14]
[1764597848341,1.32,126.94,126.9,0.05514903]
[1764597848740,1.32,126.92,126.9,0.05514903]
[1764597849338,8.3535,126.91,126.85,3.14]
[1764597849745,1.26,126.9,126.85,3.14]
[1764597850349,1.31463841,126.89,126.86,0.05990741]
[1764597851750,1.31463841,126.89,126.86,3.19990741]
[1764597852150,0.05463841,126.89,126.86,3.19990741]
[1764597854152,1.31463841,126.89,126.86,0.05990741]
[1764597855150,0.05463841,126.89,126.86,3.19990741]
[1764597856156,1.26,126.93,126.86,3.19990741]
[1764597856363,28.44,126.97,126.89,3.14]
[1764597856550,1.26,126.96,126.89,3.14]
[1764597857151,1.26,126.96,126.92,3.14]
[1764597857356,1.26,126.96,126.91,3.19318728]
[1764597857553,1.26,127.0,126.91,3.19318728]
[1764597857761,1.26,127.03,126.94,3.19670007]
[1764597857958,1.26,127.03,126.97,3.19402478]
[1764597858357,1.26,127.06,126.97,3.19402478]
[1764597858558,1.26,127.06,127.0,0.0603803]
[1764597858761,1.26,127.05,127.0,0.0603803]
[1764597859066,1.26,127.02,127.0,0.0603803]
[1764597859660,1.26,127.05,127.0,3.2003803]
[1764597860056,1.27,127.04,127.0,3.2003803]
[1764597861768,1.27,127.04,127.0,0.0603803]
[1764597862163,1.27,127.03,127.0,0.0603803]
[1764597862765,8.3574,127.02,127.0,0.0603803]
[1764597863159,7.0863,127.04,127.0,3.2703803]
[1764597863368,1.27,127.03,127.0,0.0603803]
[1764597864267,8.3563,127.04,127.0,3.2703803]
[1764597866766,1.27,127.02,127.0,0.0603803]
[1764597867474,8.357,127.03,127.0,0.0603803]
[1764597867969,8.357,127.03,127.0,3.1303803]
[1764597868374,8.357,127.03,127.0,0.0603803]
[1764597868763,1.27,127.02,127.0,0.0603803]
[1764597869068,8.357,127.03,127.0,0.0603803]
[1764597869676,1.27,127.01,127.0,0.0603803]
[1764597869877,8.3576,127.02,127.0,0.0603803]
[1764597870074,1.27,127.05,127.0,3.1303803]
[1764597870273,1.27,127.04,127.0,3.1303803]
[1764597870474,1.27,127.04,127.0,0.0603803]
[1764597871371,1.27,127.02,127.0,0.0603803]
[1764597871772,8.3574,127.02,127.0,0.0603803]
[1764597871974,1.27,127.01,126.94,3.07]
[1764597872384,1.27,126.98,126.94,3.07]
[1764597872783,1.27,126.97,126.91,3.07]
[1764597872988,4.30137473,126.95,126.93,0.05549437]
[1764597873175,4.30866346,126.95,126.93,0.05577248]
[1764597873474,1.27,126.94,126.93,0.05577248]
[1764597874277,1.33071817,126.95,126.93,0.05577248]
[1764597874581,0.06071817,126.95,126.93,3.12577248]
[1764597878286,0.06071817,126.95,126.94,3.07]
[1764597880483,7.0887,127.0,126.94,3.07]
[1764597881588,7.0887,127.0,126.96,3.12071103]
[1764597882389,8.3575,127.02,126.96,3.12071103]
[1764597883182,8.3575,127.02,126.97,3.07]
[1764597883485,7.0875,127.02,126.97,3.07]
[1764597884286,8.3575,127.02,126.97,3.07]
[1764597884680,7.0865,127.04,126.98,3.07]
[1764597884988,7.0865,127.04,127.01,3.07]
[1764597885985,1.27,127.05,127.01,3.07]
[1764597887294,1.27,127.04,127.0,0.05859101]
[1764597889490,1.27,127.04,127.0,3.12859101]
[1764597890293,1.26,127.06,127.0,3.12859101]
[1764597891889,8.3452,127.06,127.0,3.12859101]
[1764597892095,1.26,127.06,127.0,3.12859101]
[1764597892797,1.26,127.03,127.0,0.05859101]
[1764597893197,1.26,127.06,127.0,3.44859101]
[1764597893499,8.3463,127.04,127.0,3.44859101]
[1764597893696,8.3463,127.04,127.01,0.05486732]
[1764597894498,1.26,127.03,127.01,0.05486732]
[1764597896094,8.3485,127.0,126.96,3.39]
[1764597896693,1.26,126.98,126.93,10.70164024]
[1764597896895,1.26,126.98,126.93,3.39]
[1764597897096,0.05008318,126.97,126.94,0.05966062]
[1764597897399,0.05008318,126.97,126.94,3.44966062]
[1764597900104,0.05008318,126.97,126.94,10.76130086]
[1764597900306,0.05008318,126.97,126.95,3.39]
[1764597901598,1.31008318,126.97,126.94,0.05966062]
[1764597901994,1.26,126.96,126.94,0.05966062]
[1764597902192,1.2,126.95,126.89,10.70164024]
[1764597902390,1.2,126.95,126.89,3.39]
[1764597902591,1.2,126.95,126.89,10.70164024]
[1764597902791,7.0928,126.93,126.89,3.39]
[1764597902992,8.2928,126.93,126.89,3.39]
[1764597903194,0.05577873,126.92,126.9,0.05863223]
[1764597903397,8.2935,126.91,126.9,0.05863223]
[1764597903593,1.2,126.9,126.84,7.31164024]
[1764597904002,1.2,126.9,126.83,7.31164024]
[1764597904197,1.2,126.9,126.82,30.55]
[1764597904702,1.20053614,126.87,126.85,0.05084032]
[1764597905598,8.29633614,126.87,126.85,0.00084032]
[1764597905792,1.1,126.86,126.85,0.00084032]
[1764597910012,2.68,126.86,126.85,0.00084032]
[1764597910210,1.1,126.81,126.73,3.39]
[1764597910710,111.5493,126.79,126.73,3.39]
[1764597911110,111.5493,126.79,126.75,0.05673136]
[1764597911111,1.1,126.78,126.75,0.05673136]